[Event "3rd Sharjah Challengers 2023"]
[Site "Sharjah"]
[Date "2023.05.19"]
[Round "3.1"]
[White "Sivuk, Vitaly"]
[Black "Begmuratov, Khumoyun"]
[Result "1-0"]
[ECO "D37"]
[WhiteElo "2489"]
[BlackElo "2387"]
[Annotator "TA"]
[PlyCount "133"]
[EventDate "2023.05.16"]
[EventType "swiss"]
[EventCountry "UAE"]
[SourceTitle "playchess.com"]
[Source "ChessBase"]
[SourceQuality "1"]
[TimeControl "5400+30"]

{[%evp 15,133,10,25,37,24,28,27,25,29,29,43,34,32,40,55,45,43,53,47,45,50,50,47,44,45,50,50,39,45,39,45,19,44,11,19,17,21,27,21,21,32,19,32,29,30,26,37,24,114,122,131,104,191,172,175,187,225,198,327,350,316,246,240,214,216,229,242,170,247,245,229,239,229,220,242,233,224,234,273,143,377,393,377,391,385,373,328,222,223,189,237,132,225,66,70,77,1489,333,1812,1591,29959,29958,29957,29960,29970,29969,29977,29977,29977,29978,29989,29990,29994,29995,29995,29996,29997,29996,29998,29999]} 1. Nf3 {[%emt 1:31:00]} Nf6 {[%emt 1:31:00]} 2. c4 {[%emt 0:00:30]} e6 {[%emt 0:00:30]} 3. Nc3 {[%emt 0:00:30]} d5 {[%emt 0:00:30]} 4. d4 {[%emt 0:00:30]} Be7 {[%emt 0:00:30]} 5. Bf4 {[%emt 0:00:30]} c6 {[%emt 0:00:30]} 6. e3 {[%emt 0:00:30]} O-O {[%emt 0:00:30]} 7. h3 {[%emt 0:00:30]} Nbd7 {[%emt 0:00:30]} 8. Qc2 {[%emt 0:00:30]} a6 {[%emt 0:00:30]} 9. cxd5 {[%emt 0:00:30] D37: Queen's Gambit Declined: 5 Bf4.} exd5 {[%emt 0:00:30]} 10. Bd3 {[%emt 0:00:30]} c5 {[%emt 0:00:30]} 11. dxc5 {[%emt 0:00:30] White has an edge.} Nxc5 {[%emt 0:00:30]} 12. O-O {[%emt 0:00:30]} Be6 {[%emt 0:00:30] [#]} 13. Be5 $146 {[%emt 0:00:30]} ({Predecessor:} 13. Rfd1 Rc8 14. Qe2 b5 15. a3 Nb3 16. Rab1 Qb6 17. Be5 {½-½ Pohla,H-Pashayan,G URS-chT2 corr 1988}) 13... h6 {[%emt 0:00:30]} 14. Rfd1 {[%emt 0:00:30][%cal Od3c4]} Ncd7 {[%emt 0:00:30]} 15. Bd4 {[%emt 0:00:30]} Rc8 {[%emt 0:00:30]} 16. Rac1 {[%emt 0:00:30]} Re8 {[%emt 0:00:30]} 17. Qb1 {[%emt 0:00:30]} Bc5 {[%emt 0:00:30]} 18. Bc2 {[%emt 0:00:30]} Qe7 {[%emt 0:00:30]} 19. a3 {[%emt 0:00:30]} Red8 {[%emt 0:00:30]} 20. Bb3 {[%emt 0:00:30]} Bxd4 {[%emt 0:00:30]} 21. Rxd4 {[%emt 0:00:30][%cal Rc3d5]} Nc5 {[%emt 0:00:30]} 22. Bc2 {[%emt 0:00:30]} b5 {[%emt 0:00:30]} 23. Rcd1 {[%emt 0:00:30]} Rd7 {[%emt 0:00:30]} 24. Nd2 {[%emt 0:00:30][%cal Bf3d2,Bd2f1,Bf1g3,Bg3e2,Be2f4][%mdl 32]} Rdc7 {[%emt 0:00:30]} 25. Nf1 {[%emt 0:00:30]} Ncd7 {[%emt 0:00:30][%cal Bc5d7,Bd7b6,Bb6c4][%mdl 32]} 26. Bb3 {[%emt 0:00:30][%cal Rb3d5]} Nb6 {[%emt 0:00:30]} 27. Ng3 {[%emt 0:00:30]} Nc4 {[%emt 0:00:30]} 28. Nge2 {[%emt 0:00:30]} Rc5 {[%emt 0:00:30]} 29. Bxc4 {[%emt 0:00:30]} dxc4 {[%emt 0:00:30]} 30. Nf4 {[%emt 0:00:30]} R5c6 {[%emt 0:00:30]} 31. e4 {[%emt 0:00:30][%cal Be3e4,Be4e5][%mdl 32]} Re8 {[%emt 0:00:30]} (31... Rc5 $11) 32. e5 $16 {[%emt 0:00:30]} Nh7 {[%emt 0:00:30]} 33. Qe4 {[%emt 0:00:30] White is more active.} Rc5 {[%emt 0:00:30]} (33... Qc7 $16 {was called for.}) 34. Nxe6 $18 {[%emt 0:00:30]} Qxe6 {[%emt 0:00:30]} 35. f4 {[%emt 0:00:30]} a5 {[%emt 0:00:30]} 36. Rd6 {[%emt 0:00:30]} Qe7 {[%emt 0:00:30]} (36... Qc8 $142 37. Qe1 Nf8) 37. Rd7 {[%emt 0:00:30]} Qf8 {[%emt 0:00:30]} 38. Qb7 {[%emt 0:00:30]} Rb8 {[%emt 0:00:30] [#]} 39. Qxb8 {[%emt 0:00:30][%mdl 576] Remove Defender} Qxb8 {[%emt 0:00:30]} 40. Rd8+ {[%emt 0:00:30]} Qxd8 {[%emt 0:00:30]} 41. Rxd8+ {[%emt 0:00:30][%mdl 4096] Endgame KRN-KRN} Nf8 42. Rb8 {[%emt 0:00:30]} b4 {[%emt 0:01:00]} 43. axb4 {[%emt 0:00:30]} axb4 {[%emt 0:00:30]} 44. Rxb4 {[%emt 0:00:30]} Ne6 {[%emt 0:00:30]} 45. Rb8+ {[%emt 0:00:30]} Kh7 {[%emt 0:00:30] [#]} 46. g3 {[%emt 0:00:30]} Ra5 {[%emt 0:00:30]} 47. Kf2 {[%emt 0:00:30]} (47. Rb4 $18) 47... Ra1 $2 {[%emt 0:00:30]} (47... g5 $16) 48. Rc8 {[%emt 0:00:30]} Rh1 {[%emt 0:00:30]} 49. Rxc4 {[%emt 0:00:30]} Rh2+ {[%emt 0:00:30]} 50. Ke3 {[%emt 0:00:30]} Rxh3 {[%emt 0:00:30]} 51. Ne2 {[%emt 0:00:30] Hoping for f5.} g5 {[%emt 0:00:30]} 52. Kf3 {[%emt 0:00:30] Strongly threatening Kg2.} gxf4 {[%emt 0:00:30]} (52... Rh1 {keeps fighting.} 53. f5 Rf1+ 54. Ke4 Ng7) 53. Nxf4 {[%emt 0:00:30]} (53. Kg2 $18 f3+ 54. Kxh3 (54. Kxf3 Rh1 $16) 54... fxe2 55. Rc1) 53... Rh2 {[%emt 0:00:30] [#]} (53... Rh1 $16 54. Ke4 Rg1) 54. Nxe6 $2 {[%emt 0:00:30]} (54. b4 $1 $18) 54... fxe6 {KR-KR} 55. b4 {[%emt 0:00:30] Ke3 is the strong threat.} Rb2 $2 {[%emt 0:01:00][%mdl 8192]} (55... h5 $16) 56. Ke4 $2 {[%emt 0:00:30]} (56. Ke3 Rb3+ 57. Kd4 Rxg3 58. b5) 56... Kg6 $2 {[%emt 0:00:30]} (56... Rd2 57. g4 Kg7 58. Rc7+ Kg8) 57. Kd4 {[%emt 0:00:30]} Kf5 {[%emt 0:00:30]} 58. Kc5 {[%emt 0:00:30] White mates.} Kxe5 {[%emt 0:00:30]} 59. b5 {[%emt 0:00:30]} Kf5 {[%emt 0:00:30]} 60. b6 {[%emt 0:00:30]} e5 {[%emt 0:00:30]} 61. Rb4 {[%emt 0:00:30]} Rc2+ {[%emt 0:00:30]} 62. Kd6 {[%emt 0:00:30]} e4 {[%emt 0:00:30]} 63. b7 {[%emt 0:00:30]} e3 {[%emt 0:00:30]} 64. b8=Q {[%emt 0:00:30]} ({Worse is} 64. b8=B Rc8 $11) 64... Rd2+ {[%emt 0:00:30]} 65. Ke7 {[%emt 0:00:30]} Rf2 {[%emt 0:00:30]} 66. Rf4+ {[%emt 0:00:30]} Kg5 {[%emt 0:00:30]} 67. Qg8+ {[%emt 0:00:30] Weighted Error Value: White=0.28 (precise) /Black=0.36} 1-0

[Event "3rd Sharjah Challengers 2023"]
[Site "Sharjah"]
[Date "2023.05.19"]
[Round "3.2"]
[White "Bai, Adelard"]
[Black "Rios, Cristhian Camilo"]
[Result "1/2-1/2"]
[ECO "E11"]
[WhiteElo "2409"]
[BlackElo "2469"]
[Annotator "TA"]
[PlyCount "68"]
[EventDate "2023.05.16"]
[EventType "swiss"]
[EventCountry "UAE"]
[SourceTitle "playchess.com"]
[Source "ChessBase"]
[SourceQuality "1"]
[TimeControl "5400+30"]

{[%evp 16,68,8,0,0,0,5,0,5,8,9,0,24,12,0,7,14,12,24,17,23,6,38,9,31,12,59,39,91,47,46,51,51,51,51,51,51,52,62,30,46,48,46,37,51,42,51,27,45,0,45,0,42,0,26]} 1. d4 {[%emt 0:00:04]} Nf6 {[%emt 0:00:33]} 2. c4 {[%emt 0:00:07]} e6 {[%emt 0:00:40]} 3. Nf3 {[%emt 0:00:13]} d5 {[%emt 0:00:30]} 4. g3 {[%emt 0:00:14]} Bb4+ {[%emt 0:01:42]} 5. Bd2 {[%emt 0:00:24]} Be7 {[%emt 0:00:16]} 6. Bg2 {[%emt 0:00:12]} O-O {[%emt 0:00:18]} 7. O-O {[%emt 0:00:07]} c6 {[%emt 0:00:15]} 8. Qc2 {[%emt 0:00:14]} Nbd7 {[%emt 0:00:14]} 9. Bf4 {[%emt 0:00:17]} b6 {[%emt 0:00:09] E11: Bogo-Indian.} 10. Nbd2 {[%emt 0:01:03]} Nh5 {[%emt 0:00:20]} 11. e3 $1 {[%emt 0:00:30][%mdl 4] is recently more successful than 11.Be3.} (11. cxd5 {feels hotter.} Nxf4 12. Qxc6 Nxe2+ 13. Kh1) 11... Bb7 {[%emt 0:00:14]} 12. cxd5 {[%emt 0:00:16]} exd5 {[%emt 0:00:09]} 13. h4 $1 {[%emt 0:00:16]} c5 {[%emt 0:00:07] [#]} 14. Rfd1 $146 {[%emt 0:03:15]} ({Predecessor:} 14. Nb1 b5 15. dxc5 Nxf4 16. exf4 Nxc5 17. Ng5 g6 18. Rd1 b4 19. Nd2 Qb6 20. Nb3 {½-½ Mishra,A (2549)-Balakrishnan,P (2510) Chesterfield SPICE Cup op 2022 (5)}) 14... Rc8 {[%emt 0:04:48]} 15. dxc5 {[%emt 0:02:47]} Nxf4 {[%emt 0:00:11]} 16. exf4 {[%emt 0:00:07]} Nxc5 {[%emt 0:00:09]} 17. Ne5 {[%emt 0:13:00]} Bf6 {[%emt 0:08:36]} 18. Ndf3 {[%emt 0:06:19]} Qe7 {[%emt 0:01:37]} 19. Rac1 {[%emt 0:10:26]} Ne4 {[%emt 0:09:54]} 20. Qa4 {[%emt 0:07:43]} a6 {[%emt 0:02:24]} (20... Rxc1 $11 21. Rxc1 Rc8 22. Rxc8+ Bxc8) 21. Qd4 {[%emt 0:06:51]} b5 {[%emt 0:05:06]} (21... Rxc1 $14 22. Rxc1 Qd6) 22. Qb6 {[%emt 0:08:22]} Nd6 {[%emt 0:09:23]} 23. b3 {[%emt 0:10:57]} Rxc1 $1 {[%emt 0:01:52]} 24. Rxc1 {[%emt 0:02:11] [#] Rc7 would be deadly.} Rc8 {[%emt 0:00:07] Inhibits Rc7.} 25. Rxc8+ {[%emt 0:02:22]} Nxc8 {[%emt 0:00:11]} 26. Qd4 {[%emt 0:03:40]} Qc7 {[%emt 0:06:12]} 27. Nh2 {[%emt 0:05:16][%cal Bf3h2,Bh2g4,Bg4e3][%mdl 32] White is more active.} Nb6 {[%emt 0:01:19]} 28. Nhg4 {[%emt 0:00:33] [#] Threatens to win with Nxf6+.} Be7 {[%emt 0:00:07]} 29. Nd3 {[%emt 0:00:32]} Qd6 {[%emt 0:01:54]} 30. Ne3 {[%emt 0:00:56] Black must now prevent Nf5.} Bf6 {[%emt 0:03:23]} 31. Qc5 {[%emt 0:00:56]} Be7 {[%emt 0:01:17]} 32. Qd4 {[%emt 0:00:07] And now Nf5 would win.} Bf6 $1 {[%emt 0:00:08]} 33. Qc5 {[%emt 0:03:57]} (33. Qb4 $5 {[%cal Rb4d6]} Be7 34. Qd4 $11) 33... Be7 {[%emt 0:00:30]} 34. Qd4 {[%emt 0:00:47] Nf5 is the strong threat.} Bf6 $1 {[%emt 0:00:39] Weighted Error Value: White=0.12 (very precise) /Black=0.10 (very precise)} 1/2-1/2

[Event "3rd Sharjah Challengers 2023"]
[Site "Sharjah"]
[Date "2023.05.19"]
[Round "3.3"]
[White "Mammadova, Gulnar"]
[Black "Nigmatov, Ortik"]
[Result "1/2-1/2"]
[ECO "E11"]
[WhiteElo "2349"]
[BlackElo "2438"]
[Annotator "TA"]
[PlyCount "58"]
[EventDate "2023.05.16"]
[EventType "swiss"]
[EventCountry "UAE"]
[SourceTitle "playchess.com"]
[Source "ChessBase"]
[SourceQuality "1"]
[TimeControl "5400+30"]

{[%evp 9,58,4,5,-19,3,-7,0,-15,0,-52,-51,-52,-21,-35,-13,-30,-6,-35,-35,-27,-34,-31,-22,-47,0,0,17,0,142,132,164,122,249,236,230,157,178,156,143,148,178,154,163,89,89,1,12,5,11,12,68]} 1. Nf3 {[%emt 0:00:06]} d5 {[%emt 0:01:52]} 2. d4 {[%emt 0:00:16]} Nf6 {[%emt 0:00:17]} 3. c4 {[%emt 0:00:24]} e6 {[%emt 0:00:12]} 4. g3 {[%emt 0:00:43]} Bb4+ {[%emt 0:00:37]} 5. Bd2 {[%emt 0:00:22]} Be7 {[%emt 0:00:15]} 6. Nc3 {[%emt 0:00:43] E11: Bogo-Indian.} c6 {[%emt 0:01:20]} 7. c5 {[%emt 0:04:54]} Nbd7 {[%emt 0:10:47]} 8. Bf4 {[%emt 0:05:48] [#]} Nh5 $146 {[%emt 0:03:50]} ({Predecessor:} 8... Nf8 9. Bg2 Ng6 10. Bd2 O-O 11. O-O Qc7 12. b4 b6 13. Rc1 bxc5 14. bxc5 e5 15. Nxe5 Nxe5 16. dxe5 Qxe5 {0-1 Naryshkina,I (1382)-Efimenko,A (1865) Chigorin Memorial 25th 2017 (7)}) 9. Bg2 {[%emt 0:04:16]} (9. Be3 $11) 9... Nxf4 {[%emt 0:00:13]} 10. gxf4 {[%emt 1:17:58]} h6 {[%emt 1:16:07]} 11. b4 {[%emt 0:00:00]} g5 {[%emt 0:00:00]} 12. Qd2 {[%emt 0:00:00]} b6 {[%emt 0:00:00]} 13. a3 {[%emt 0:00:00]} g4 {[%emt 0:00:00]} 14. Ne5 {[%emt 0:00:00]} Nxe5 {[%emt 0:00:00]} 15. fxe5 {[%emt 0:00:00]} bxc5 {[%emt 0:00:00]} 16. bxc5 {[%emt 0:00:00]} Ba6 {[%emt 0:00:00]} (16... f6 $15) 17. Qc2 $11 {[%emt 0:00:00]} Qa5 {[%emt 0:00:00]} 18. O-O {[%emt 0:00:00]} Kd7 {[%emt 0:00:00]} (18... Rb8 $11 {remains equal.}) 19. Rfb1 $16 {[%emt 0:00:00] Black must now prevent Rb4.} Rhb8 {[%emt 0:00:00] Prevents Rb4.} 20. e4 {[%emt 0:00:00]} Bc4 {[%emt 0:00:00]} (20... dxe4 $16 {is a better defense.} 21. Qxe4 (21. Bxe4 h5 $16) (21. Nxe4 Rxb1+ 22. Rxb1 Rb8 $18) 21... Rxb1+ 22. Rxb1 Rc8) 21. exd5 $18 {[%emt 0:00:00]} cxd5 {[%emt 0:00:00]} 22. Ne4 {[%emt 0:00:00]} Rxb1+ {[%emt 0:00:00]} 23. Rxb1 {[%emt 0:00:00] [#] And now Nd6 would win.} Rb8 {[%emt 0:00:00][%cal Od5e4]} 24. Nd6 {[%emt 0:00:00] h4 is the strong threat.} Bxd6 {[%emt 0:00:00]} 25. exd6 {[%emt 0:00:00]} Rxb1+ {[%emt 0:00:00]} 26. Qxb1 {[%emt 0:00:00] White wants to mate with Qb7+.} Kc6 {[%emt 0:00:00][%cal Oa5d2] [#] Inhibits Qb7+.} 27. Qc1 {[%emt 0:00:00] Dodges Qd2} (27. Qb4 $1 $16 {[%cal Rb4a5]} Qxb4 28. axb4) 27... Qa4 $11 {[%emt 0:00:00] The position is equal.} 28. h3 {[%emt 0:00:00] The board is on fire.} gxh3 {[%emt 0:00:00]} 29. Bxh3 {[%emt 0:00:00] Strongly threatening Kh2.} Bd3 $1 {[%emt 0:00:00] An interesting game.   Weighted Error Value: White=0.20 (precise) /Black=0.21 (precise)} 1/2-1/2

[Event "3rd Sharjah Challengers 2023"]
[Site "Sharjah"]
[Date "2023.05.19"]
[Round "3.4"]
[White "Vandenbussche, Thibaut"]
[Black "Tulendinov, Dinmukhammed"]
[Result "1/2-1/2"]
[ECO "B45"]
[WhiteElo "2437"]
[BlackElo "2164"]
[Annotator "TA"]
[PlyCount "100"]
[EventDate "2023.05.16"]
[EventType "swiss"]
[EventCountry "UAE"]
[SourceTitle "playchess.com"]
[Source "ChessBase"]
[SourceQuality "1"]
[TimeControl "5400+30"]

{[%evp 15,100,27,33,14,14,14,19,19,19,0,0,0,0,0,25,-8,-10,-23,-9,-7,-10,-19,0,0,0,0,-7,-19,28,20,16,7,33,9,9,9,9,9,13,10,10,11,18,18,18,17,17,5,43,33,43,43,43,0,43,0,0,0,43,0,43,43,43,0,43,0,43,0,43,0,43,0,43,43,43,43,43,0,0,0,0,0,0,0,0,0,0]} 1. e4 {[%emt 1:31:00]} c5 {[%emt 1:31:00]} 2. Nf3 {[%emt 0:00:30]} e6 {[%emt 0:00:30]} 3. d4 {[%emt 0:00:30]} cxd4 {[%emt 0:00:30]} 4. Nxd4 {[%emt 0:00:30]} Nf6 {[%emt 0:00:30]} 5. Nc3 {[%emt 0:00:30]} Nc6 {[%emt 0:00:30]} 6. Nxc6 {[%emt 0:00:30]} bxc6 {[%emt 0:00:30]} 7. e5 {[%emt 0:00:30]} Nd5 {[%emt 0:00:30]} 8. Ne4 {[%emt 0:00:30]} Bb7 {[%emt 0:00:30]} 9. c4 {[%emt 0:00:30] B45: Sicilian Four Knights.} Nb4 {[%emt 0:00:30]} 10. c5 {[%emt 0:00:30]} Qb8 {[%emt 0:00:30] Black is weak on the dark squares 10...Ba6 is vanishing.} 11. f4 {[%emt 0:00:30]} Ba6 {[%emt 0:00:30]} 12. a3 {[%emt 0:00:30]} Bxf1 {[%emt 0:00:30]} 13. Rxf1 {[%emt 0:00:30][%cal Bh1f1,Bf1f3,Bf3b3][%mdl 32]} Nd5 {[%emt 0:00:30]} 14. Rf3 $1 {[%emt 0:00:30][%mdl 4] is now more promising than 14.Qd4.} Be7 {[%emt 0:00:30] [#]} 15. Rb3 $146 {[%emt 0:00:30]} ({Predecessor:} 15. Qc2 f5 16. exf6 Nxf6 17. Rb3 Qc7 18. Nxf6+ Bxf6 19. Be3 O-O 20. O-O-O Rab8 21. Rd2 Rxb3 22. Qxb3 {½-½ Moussard,J (2686)-Grandelius,N (2651) Bundesliga 2223 2022 (10.7)}) 15... Qc7 {[%emt 0:00:30]} 16. Bd2 {[%emt 0:00:30]} Rb8 {[%emt 0:00:30]} 17. Rxb8+ {[%emt 0:00:30]} Qxb8 {[%emt 0:00:30]} 18. Qc2 {[%emt 0:00:30]} O-O {[%emt 0:00:30]} 19. O-O-O {[%emt 0:00:30][%cal Be1c1,Bc1b1,Bb1c2,Bc2c3,Bc3c4][%mdl 32]} Qb5 {[%emt 0:00:30]} 20. Kb1 {[%emt 0:00:30]} Rb8 {[%emt 0:00:30] With the idea ...Qe2.} 21. Bc1 {[%emt 0:00:30]} (21. Re1 {simplifies} Bd8 22. Ka1 Qa6 23. g3) 21... Qb3 {[%emt 0:00:30]} (21... Qa5 $142) 22. Rd3 {[%emt 0:00:30]} Qxc2+ {[%emt 0:00:30]} (22... Qb5 {feels hotter.} 23. g4 Qa5 24. Bd2 Qb5) 23. Kxc2 {[%emt 0:00:30]} Rb5 {[%emt 0:00:30]} 24. b4 {[%emt 0:00:30]} a5 {[%emt 0:00:30]} 25. Nc3 {[%emt 0:00:30]} Nxc3 {[%emt 0:00:30]} 26. Kxc3 {[%emt 0:00:30]} axb4+ {[%emt 0:00:30]} 27. axb4 $11 {[%emt 0:00:30][%mdl 4096] Endgame KRB-KRB} Rb7 {[%emt 0:00:30]} 28. Kc4 {[%emt 0:00:30]} Ra7 {[%emt 0:00:30]} 29. g4 {[%emt 0:00:30][%cal Bg2g4,Bg4g5,Bg5g6][%mdl 32]} f5 {[%emt 0:00:30]} 30. g5 {[%emt 0:00:30]} Kf8 {[%emt 0:00:30]} 31. Ba3 {[%emt 0:00:30]} h5 {[%emt 0:00:30]} 32. g6 {[%emt 0:00:30]} Ke8 {[%emt 0:00:30]} 33. Bb2 {[%emt 0:00:30]} Kd8 {[%emt 0:00:30]} 34. Kb3 {[%emt 0:00:30]} Kc7 {[%emt 0:00:30]} (34... Rb7 $5 {[%cal Re7c5]}) 35. Bc3 {[%emt 0:00:30]} (35. Rh3 $5 {[%cal Rh3h5]}) 35... Ra8 {[%emt 0:00:30]} 36. Rd1 {[%emt 0:00:30]} h4 {[%emt 0:00:30]} 37. Rg1 {[%emt 0:00:30]} Ra7 {[%emt 0:00:30]} 38. Rg2 {[%emt 0:00:30]} Ra8 {[%emt 0:00:30]} 39. Bd4 {[%emt 0:00:30]} Kb7 {[%emt 0:00:30]} (39... h3 $5 {[%cal Rh3g2]} 40. Rg3 Rh8 $11) 40. Rg1 {[%emt 0:00:30]} Kc7 {[%emt 0:00:30]} 41. Be3 {[%emt 0:00:30]} Ra6 {[%emt 0:00:30]} 42. Bf2 {[%emt 0:00:30]} Ra8 {[%emt 0:00:30]} 43. Rd1 {[%emt 0:00:30]} Ra6 {[%emt 0:00:30]} 44. Kb2 {[%emt 0:00:30]} Ra4 {[%emt 0:00:30]} 45. Be1 {[%emt 0:00:30]} Ra8 {[%emt 0:00:30]} 46. Rd3 {[%emt 0:00:30]} Rb8 {[%emt 0:00:30] The position is equal.} 47. Kc2 {[%emt 0:00:30]} Ra8 {[%emt 0:00:30] [#] ...Ra2+ would be deadly.} 48. Kb2 {[%emt 0:00:30] Wards off Ra2+} Rb8 {[%emt 0:00:30]} 49. Kc2 {[%emt 0:00:30]} Ra8 {[%emt 0:00:30] ...Ra2+ is the strong threat.} 50. Kb2 {[%emt 0:00:30] Repels Ra2+} Rb8 {[%emt 0:00:30] Weighted Error Value: White=0.13 (very precise) /Black=0.13 (very precise)} 1/2-1/2